bitfinex/quotes_BTCUSD_20251212
["timestamp","ask_amount","ask_price","bid_price","bid_amount"]
[1765556965636,0.09112683,90475.0,90474.0,0.00038745]
[1765556965814,0.04513683,90475.0,90474.0,0.00038745]
[1765556966010,0.002,90475.0,90474.0,0.00038745]
[1765556966191,0.04313683,90476.0,90474.0,0.00038745]
[1765556966401,0.01105143,90486.0,90482.0,0.01105192]
[1765556966578,0.04313683,90484.0,90482.0,0.23208976]
[1765556967183,0.04313683,90484.0,90482.0,0.01105192]
[1765556967438,0.04313683,90479.0,90478.0,0.01105241]
[1765556967583,0.04313683,90479.0,90476.0,0.01105265]
[1765556967782,0.01105253,90477.0,90471.0,0.22106439]
[1765556967984,0.22105309,90476.0,90471.0,0.23211765]
[1765556968210,0.04313683,90475.0,90474.0,0.22144543]
[1765556968389,0.04313683,90475.0,90474.0,0.00038745]
[1765556968593,0.26419237,90475.0,90474.0,0.00038745]
[1765556968794,0.04313683,90475.0,90474.0,0.00038745]
[1765556969019,0.26419026,90476.0,90474.0,0.00038745]
[1765556969343,0.04313683,90484.0,90481.0,0.01105204]
[1765556969809,0.04313683,90484.0,90482.0,0.22103843]
[1765556970245,0.04313683,90489.0,90487.0,0.22102622]
[1765556970705,0.05418765,90491.0,90488.0,0.01105118]
[1765556970913,0.04313683,90487.0,90486.0,0.01105143]
[1765556971120,0.0110507,90492.0,90485.0,0.01105155]
[1765556971121,0.04313683,90486.0,90485.0,0.01105155]
[1765556971331,0.04518958,90487.0,90486.0,0.22102866]
[1765556971535,0.00205275,90487.0,90486.0,0.22102866]
[1765556972582,0.00205275,90487.0,90486.0,0.22107866]
[1765556972862,0.00405275,90487.0,90486.0,0.22269153]
[1765556973267,0.00405275,90487.0,90486.0,0.22102866]
[1765556973490,0.00405275,90487.0,90486.0,0.22107866]
[1765556973670,0.00205275,90487.0,90486.0,0.22112866]
[1765556974079,0.00205275,90487.0,90486.0,0.22107866]
[1765556974236,0.00205275,90487.0,90486.0,0.22112866]
[1765556974621,0.00205275,90487.0,90486.0,0.22274153]
[1765556975419,0.00205275,90487.0,90486.0,0.22374153]
[1765556975786,0.00205275,90487.0,90486.0,0.29560683]
[1765556976364,0.00205275,90487.0,90486.0,0.29460683]
[1765556976812,0.00205275,90487.0,90486.0,0.33415608]
[1765556977022,0.00205275,90487.0,90486.0,0.29460683]
[1765556977244,0.00205275,90487.0,90486.0,0.33779483]
[1765556977674,0.00205275,90487.0,90486.0,0.37834408]
[1765556978044,0.00205275,90487.0,90486.0,0.29560683]
[1765556978521,0.00205275,90487.0,90486.0,0.33515786]
[1765556978757,0.00205275,90487.0,90486.0,0.33879483]
[1765556979007,0.00205275,90487.0,90486.0,0.33779483]
[1765556979209,0.00205275,90487.0,90486.0,0.29560683]
[1765556979640,0.00205275,90487.0,90486.0,0.34562522]
[1765556979861,0.00205275,90487.0,90486.0,0.33418142]
[1765556980007,0.00205275,90487.0,90486.0,0.29760683]
[1765556980416,0.00205275,90487.0,90486.0,0.31532683]
[1765556980621,0.00205275,90487.0,90486.0,0.35190142]
[1765556980825,0.00205275,90487.0,90486.0,0.31427683]
[1765556980982,0.00205275,90487.0,90486.0,0.22464153]
[1765556981635,0.00205275,90487.0,90486.0,0.25434261]
[1765556982068,0.00205275,90487.0,90486.0,0.22264153]
[1765556982351,0.00205275,90487.0,90486.0,0.25233538]
[1765556982556,0.00205275,90487.0,90486.0,0.30212286]
[1765556983086,0.00205275,90487.0,90485.0,0.01105155]
[1765556983087,0.04518958,90487.0,90485.0,0.23208214]
[1765556983219,0.04313683,90487.0,90486.0,0.002]
[1765556983650,0.04313683,90487.0,90485.0,0.01105155]
[1765556983901,0.04313683,90488.0,90485.0,0.01105155]
[1765556984107,0.04313683,90496.0,90491.0,0.01105082]
[1765556984249,0.01105021,90496.0,90492.0,0.0110507]
[1765556984474,10.58687,90500.0,90497.0,0.01105009]
[1765556984674,0.04313683,90498.0,90497.0,0.01105009]
[1765556984843,0.04313683,90498.0,90490.0,0.01205093]
[1765556984844,0.27518956,90497.0,90490.0,0.01205093]
[1765556985107,0.04313683,90487.0,90486.0,0.01105143]
[1765556985485,0.04313683,90495.0,90493.0,0.01105057]
[1765556985686,0.04313683,90495.0,90493.0,0.23206213]
[1765556985939,0.12444083,90494.0,90489.0,0.23207193]
[1765556986141,0.04313683,90492.0,90491.0,0.01105082]
[1765556986548,0.04313683,90491.0,90490.0,0.01105094]
[1765556986742,0.22100668,90495.0,90490.0,0.01105094]
[1765556986944,0.04313683,90491.0,90490.0,0.01105094]
[1765556987333,10.59791972,90500.0,90493.0,0.01105057]
[1765556987534,0.04413683,90495.0,90494.0,0.23205957]
[1765556988537,0.09212683,90495.0,90493.0,0.22101156]
[1765556988756,0.09112683,90495.0,90493.0,0.22101156]
[1765556988957,0.04799,90495.0,90493.0,0.22101156]
[1765556989165,0.04313683,90494.0,90493.0,0.22101156]
[1765556990868,0.001,90495.0,90493.0,0.22101156]
[1765556991142,0.001,90495.0,90494.0,0.09182134]
[1765556991340,0.001,90495.0,90494.0,0.02371378]
[1765556991775,0.00329055,90495.0,90494.0,0.05341504]
[1765556991973,0.00229055,90495.0,90494.0,0.00161287]
[1765556992150,0.00229055,90495.0,90493.0,0.25077299]
[1765556992151,0.00229055,90495.0,90493.0,0.22101156]
[1765556992418,10.58687,90500.0,90499.0,0.22099691]
[1765556992627,10.58687,90500.0,90499.0,0.23871691]
[1765556993261,10.63000683,90500.0,90499.0,0.01772]
[1765556993474,10.58687,90500.0,90499.0,0.01772]
[1765556994666,10.63000683,90500.0,90499.0,0.01772]
[1765556994868,10.69716683,90500.0,90499.0,0.01772]
[1765556995295,10.63000683,90500.0,90499.0,0.01772]
[1765556995499,10.63000683,90500.0,90493.0,0.22101156]
[1765556995500,0.04313683,90494.0,90493.0,0.01105057]
[1765556996144,10.58687,90500.0,90499.0,0.22099691]
[1765556996658,0.04313683,90499.0,90498.0,0.22099711]
[1765556996952,0.04313683,90493.0,90490.0,0.01205093]
[1765556997083,0.04313683,90491.0,90490.0,0.01205093]
[1765556997921,0.04313683,90492.0,90491.0,0.23206727]
[1765556998169,0.04313683,90492.0,90491.0,0.01105082]
[1765556998346,0.04313683,90493.0,90489.0,0.23207175]
[1765556998606,0.23206471,90492.0,90488.0,0.01105118]
[1765556998818,0.04313683,90490.0,90489.0,0.23207239]
[1765556999311,0.11029683,90493.0,90490.0,0.23206983]
[1765556999589,0.04313683,90491.0,90490.0,0.01105094]
[1765557000555,0.04313683,90491.0,90471.0,0.02976143]
[1765557000556,1.23210318,90477.0,90471.0,0.02976143]
[1765557000765,0.22106775,90470.0,90468.0,0.02976143]
[1765557000973,0.2475,90476.0,90469.0,0.01105351]
[1765557001186,0.2321143,90473.0,90468.0,0.00038791]
[1765557001393,1.04492,90469.0,90468.0,0.00038791]
[1765557001601,1.0,90455.0,90451.0,0.05938082]
[1765557001824,0.32022415,90452.0,90451.0,0.00038861]
[1765557002239,0.38738415,90452.0,90451.0,0.00038861]
[1765557002703,1.78534934,90452.0,90451.0,0.00038861]
[1765557003098,1.69576415,90452.0,90451.0,0.00038861]
[1765557004373,1.69576415,90452.0,90415.0,0.03972394]
[1765557004374,0.05419633,90420.0,90415.0,0.03972394]
[1765557004571,0.0331,90418.0,90415.0,0.01144949]
[1765557004758,0.04492,90416.0,90415.0,0.00038938]
[1765557004962,1.08805683,90416.0,90415.0,0.00038938]
[1765557005165,1.15521683,90416.0,90415.0,0.00038938]
[1765557005365,1.15521683,90416.0,90398.0,0.03972394]
[1765557005366,0.01106182,90401.0,90398.0,0.03972394]
[1765557005567,1.0,90393.0,90391.0,0.03972394]
[1765557005788,0.04313683,90388.0,90387.0,0.03972394]
[1765557005988,0.04313683,90386.0,90385.0,0.03972394]
[1765557006372,0.04313683,90386.0,90375.0,0.011065]
[1765557006373,1.05420183,90375.0,90366.0,0.05938082]
[1765557006580,0.08805683,90367.0,90366.0,0.0110661]
[1765557006830,0.04492,90367.0,90363.0,0.01106647]
[1765557007056,0.08805683,90364.0,90363.0,0.01106647]
[1765557007266,0.11029683,90364.0,90363.0,0.01106647]
[1765557007523,0.11208,90364.0,90354.0,0.01106757]
[1765557007762,0.05420453,90353.0,90350.0,0.00099999]
[1765557007980,0.06716,90363.0,90350.0,0.2340423]
[1765557008205,0.0110677,90353.0,90350.0,0.00261286]
[1765557008422,0.0110677,90353.0,90348.0,0.01106831]
[1765557008423,0.7959,90350.0,90348.0,0.01106831]
[1765557008629,0.04492,90349.0,90346.0,0.01106855]
[1765557008804,0.04313683,90347.0,90346.0,0.01106855]
[1765557009057,0.04313683,90347.0,90338.0,0.01106953]
[1765557009058,0.01106892,90343.0,90338.0,0.01106953]
[1765557009263,0.01106892,90343.0,90330.0,0.00261286]
[1765557009483,0.07623683,90331.0,90330.0,0.22302325]
[1765557009903,0.07623683,90331.0,90330.0,0.22141038]
[1765557010105,0.04313683,90327.0,90326.0,0.011071]
[1765557010314,0.14518,90331.0,90330.0,0.22141038]
[1765557010315,0.07623683,90331.0,90330.0,0.22141038]
[1765557010517,0.07623683,90331.0,90326.0,0.00161287]
[1765557010518,0.04313683,90327.0,90326.0,0.00161287]
[1765557010695,0.04313683,90327.0,90326.0,0.22303305]
[1765557010900,0.04313683,90327.0,90326.0,0.00161287]
[1765557011543,0.04313683,90324.0,90320.0,0.00139999]
[1765557011756,0.05420808,90324.0,90320.0,0.01247173]
[1765557011989,1.04492,90321.0,90320.0,0.0004]
[1765557012212,0.08805683,90321.0,90320.0,0.0004]
[1765557012419,0.15521683,90321.0,90320.0,0.0004]
[1765557012627,0.15521683,90321.0,90320.0,0.22183489]
[1765557012827,0.08805683,90321.0,90320.0,0.0004]
[1765557013211,0.04313683,90321.0,90320.0,0.0004]
[1765557013415,0.01872,90327.0,90325.0,0.22142264]
[1765557013416,0.001,90327.0,90325.0,0.22142264]
[1765557013592,0.001,90327.0,90325.0,0.22303551]
[1765557013790,0.04313683,90330.0,90329.0,0.22141283]
[1765557014028,0.04313683,90330.0,90327.0,0.23248642]
[1765557014200,0.04492,90328.0,90326.0,0.23249118]
[1765557014789,0.00038676,90331.0,90330.0,0.22141038]
[1765557015085,0.08805683,90327.0,90325.0,0.01107113]
[1765557015273,0.08805683,90327.0,90300.0,0.0004]
[1765557015274,0.04313683,90322.0,90321.0,0.01107162]
[1765557015554,0.055991,90326.0,90319.0,0.23250793]
[1765557015555,0.12115683,90321.0,90319.0,0.23250793]
[1765557015777,0.12115683,90321.0,90320.0,0.0004]
[1765557015978,0.18831683,90321.0,90320.0,0.0004]
[1765557016649,1.76799362,90321.0,90320.0,0.0004]
[1765557016819,1.55529379,90311.0,90310.0,0.0004]
[1765557017020,0.04313683,90301.0,90300.0,0.01147419]
[1765557017235,0.04313683,90304.0,90303.0,0.23254902]
[1765557017400,1.33383683,90304.0,90303.0,0.01107382]
[1765557017623,1.44591683,90304.0,90303.0,0.01107382]
[1765557017799,0.04313683,90301.0,90300.0,0.01147419]
[1765557018011,0.08577683,90301.0,90300.0,0.01147419]
[1765557018214,0.15418336,90301.0,90300.0,0.01147419]
[1765557018637,0.00238653,90301.0,90300.0,0.082391]
[1765557018840,0.00238653,90301.0,90300.0,0.10615226]
[1765557019067,0.00238653,90301.0,90300.0,0.08400387]
[1765557019483,0.00238653,90301.0,90300.0,0.01308706]
[1765557020851,0.00038653,90301.0,90300.0,0.01308706]
[1765557021699,0.00038653,90301.0,90300.0,0.03523545]
[1765557022893,0.00038653,90301.0,90300.0,0.01508706]
[1765557023304,0.04352336,90301.0,90300.0,0.01508706]
[1765557023510,0.09010336,90301.0,90300.0,0.01508706]
[1765557023718,0.15495336,90301.0,90300.0,0.01508706]
[1765557023930,0.11181653,90301.0,90300.0,0.01508706]
[1765557024123,0.11181653,90301.0,90300.0,0.01308706]
[1765557024375,0.15495336,90301.0,90300.0,0.01308706]
[1765557024599,0.15495336,90301.0,90300.0,0.0004]
[1765557025018,0.00038653,90301.0,90300.0,0.0004]
[1765557025611,0.04352336,90301.0,90300.0,0.0004]
[1765557025826,0.00138653,90301.0,90300.0,0.0004]
[1765557026029,0.11281653,90301.0,90300.0,0.0004]
[1765557026232,0.04452336,90301.0,90300.0,0.0004]
[1765557026960,0.15595336,90301.0,90300.0,0.0004]
[1765557027152,0.11181653,90301.0,90300.0,0.0004]
[1765557027373,0.04696653,90301.0,90300.0,0.0004]
[1765557027576,0.15595336,90301.0,90300.0,0.0004]
[1765557027982,0.15495336,90301.0,90300.0,0.0004]
[1765557028443,0.15595336,90301.0,90300.0,0.0004]
[1765557028648,1.15595336,90301.0,90300.0,0.0004]
[1765557028876,0.11181653,90301.0,90300.0,0.0004]
[1765557029268,0.15695336,90301.0,90300.0,0.0004]
[1765557029486,0.04552336,90301.0,90300.0,0.0004]
[1765557029695,0.00238653,90301.0,90300.0,0.0004]
[1765557029894,0.00238653,90301.0,90300.0,0.22188394]
[1765557030347,0.00238653,90301.0,90300.0,0.22349681]
[1765557030556,0.00238653,90301.0,90300.0,0.5642152]
[1765557030767,0.04313683,90334.0,90331.0,0.01107039]
[1765557030978,0.06485,90335.0,90331.0,0.0111865]
[1765557031191,0.08971683,90332.0,90331.0,0.00011611]
[1765557031400,0.12355172,90332.0,90331.0,0.00011611]
[1765557031606,0.18840172,90332.0,90331.0,0.00011611]
[1765557031807,0.58250172,90332.0,90331.0,0.00011611]
[1765557032006,1.18840172,90332.0,90331.0,0.00011611]
[1765557033898,1.18940172,90332.0,90331.0,0.00011611]
[1765557034522,1.24853871,90332.0,90331.0,0.00011611]
[1765557035299,1.07883871,90332.0,90331.0,0.00011611]
[1765557035499,0.82050172,90332.0,90331.0,0.00011611]
[1765557035702,1.18940172,90332.0,90331.0,0.00011611]
[1765557036329,1.14626489,90332.0,90331.0,0.00011611]
[1765557036488,1.18940172,90332.0,90331.0,0.00011611]
[1765557036892,1.05980172,90332.0,90331.0,0.00011611]
[1765557037485,1.01070172,90332.0,90331.0,0.00011611]
[1765557037681,0.77880172,90332.0,90331.0,0.00011611]
[1765557037871,0.74400172,90332.0,90331.0,0.00011611]
[1765557038658,1.18940172,90332.0,90331.0,0.00011611]
[1765557038862,0.81630172,90332.0,90331.0,0.00011611]
[1765557039401,0.75240172,90332.0,90331.0,0.00011611]
[1765557039612,0.12455172,90332.0,90331.0,0.00011611]
[1765557040465,0.07797172,90332.0,90331.0,0.00011611]
[1765557040892,1.48010172,90332.0,90331.0,0.00011611]
[1765557041102,1.53926146,90332.0,90331.0,0.00011611]
[1765557041311,0.89066146,90332.0,90331.0,0.00011611]
[1765557041520,0.76665172,90332.0,90331.0,0.00011611]
[1765557041732,0.76665172,90332.0,90331.0,0.22152404]
[1765557041733,0.03483489,90332.0,90331.0,0.22152404]
[1765557041953,0.07797172,90332.0,90331.0,0.22152404]
[1765557042783,0.4108072,90332.0,90331.0,0.00011611]
[1765557042999,0.45022153,90332.0,90331.0,0.00011611]
[1765557043201,1.45022153,90332.0,90331.0,0.00011611]
[1765557043405,1.4108072,90332.0,90331.0,0.00011611]
[1765557045101,1.42192204,90332.0,90331.0,0.00011611]
[1765557045375,1.48108178,90332.0,90331.0,0.00011611]
[1765557045593,1.42192204,90332.0,90331.0,0.00011611]
[1765557045805,1.37878521,90332.0,90331.0,0.00011611]
[1765557046019,1.48108178,90332.0,90331.0,0.00011611]
[1765557046222,1.42192204,90332.0,90331.0,0.00011611]
[1765557046628,1.3937702,90332.0,90331.0,0.00011611]
[1765557047259,1.71262204,90332.0,90331.0,0.00011611]
[1765557047480,1.82312966,90332.0,90331.0,0.00011611]
[1765557047678,1.00756532,90332.0,90331.0,0.00011611]
[1765557048279,1.50522204,90332.0,90331.0,0.00011611]
[1765557049289,1.49121656,90332.0,90331.0,0.00011611]
[1765557050774,1.44807973,90332.0,90331.0,0.00011611]
[1765557051116,1.49121656,90332.0,90331.0,0.00011611]
[1765557051545,1.21291656,90332.0,90331.0,0.00011611]
[1765557052119,1.09971656,90332.0,90331.0,0.00011611]
[1765557052322,1.15885984,90332.0,90331.0,0.00011611]
[1765557052528,1.09971656,90332.0,90331.0,0.00011611]
[1765557052833,1.16708735,90332.0,90331.0,0.00011611]
[1765557053117,0.05421065,90303.0,90300.0,0.00201287]
[1765557053301,0.04313683,90303.0,90300.0,0.01159034]
[1765557053492,0.08784683,90301.0,90300.0,0.00051615]
[1765557053777,0.11153816,90301.0,90300.0,0.00051615]
[1765557053965,0.18618125,90301.0,90300.0,0.00051615]
[1765557054189,0.01107689,90278.0,90272.0,0.01107763]
[1765557054324,0.04313683,90276.0,90275.0,0.01107726]
[1765557054689,0.04313683,90280.0,90279.0,0.01107677]
[1765557055017,0.04313683,90289.0,90288.0,0.01107566]
[1765557055221,0.06682296,90289.0,90288.0,0.01107566]
[1765557055422,0.04313683,90287.0,90286.0,0.23259283]
[1765557055645,0.06683456,90287.0,90286.0,0.01107591]
[1765557055844,0.03321,90294.0,90285.0,0.2325954]
[1765557055845,0.04313683,90286.0,90285.0,0.2325954]
[1765557056429,0.03321,90294.0,90293.0,0.22150111]
[1765557056665,0.04313683,90292.0,90287.0,0.01107579]
[1765557056873,0.04313683,90281.0,90280.0,0.01107665]
[1765557057078,0.01107628,90283.0,90275.0,0.01107726]
[1765557057295,0.04313683,90273.0,90272.0,0.00038653]
[1765557057731,0.04313683,90282.0,90281.0,0.22153055]
[1765557057940,1.0,90287.0,90286.0,0.2325925]
[1765557058163,0.04313683,90282.0,90281.0,0.01107652]
[1765557059012,0.01107542,90290.0,90286.0,0.01107591]
[1765557059227,0.04313683,90281.0,90280.0,0.01207664]
[1765557059421,0.04313683,90281.0,90280.0,0.01107665]
[1765557060022,0.04313683,90279.0,90277.0,0.01107701]
[1765557060218,0.0542136,90279.0,90272.0,0.0019994]
[1765557060424,0.08784683,90273.0,90272.0,0.00038653]
[1765557060624,1.08784683,90273.0,90272.0,0.00038653]
[1765557060846,1.18624888,90273.0,90272.0,0.00038653]
[1765557060987,1.16251008,90273.0,90272.0,0.00038653]
[1765557061193,0.58404683,90273.0,90272.0,0.00038653]
[1765557061408,0.26471647,90261.0,90260.0,0.0004]
[1765557061626,0.3430229,90261.0,90260.0,0.0004]
[1765557061829,1.4073829,90261.0,90260.0,0.0004]
[1765557062030,1.44138289,90261.0,90260.0,0.0004]
[1765557062238,1.44138289,90261.0,90250.0,0.00139999]
[1765557062239,0.44138289,90261.0,90250.0,0.00139999]
[1765557062448,1.34266102,90251.0,90250.0,0.0004]
[1765557062665,1.37666101,90251.0,90250.0,0.0004]
[1765557062867,1.44102101,90251.0,90250.0,0.0004]
[1765557063704,0.21941682,90251.0,90250.0,0.0004]
[1765557063929,1.19770839,90251.0,90250.0,0.0004]
[1765557064183,1.22141682,90251.0,90250.0,0.0004]
[1765557064397,1.21112526,90251.0,90250.0,0.0004]
[1765557064597,1.22137578,90251.0,90250.0,0.0004]
[1765557064813,1.51207578,90251.0,90250.0,0.0004]
[1765557065643,0.11387895,90251.0,90250.0,0.0004]
[1765557065847,1.19766735,90251.0,90250.0,0.0004]
[1765557066052,1.22137578,90251.0,90250.0,0.0004]
[1765557066252,1.50182526,90251.0,90250.0,0.0004]
[1765557066614,1.47811683,90251.0,90250.0,0.0004]
[1765557067332,0.55744102,90251.0,90250.0,0.0004]
[1765557067539,1.66651102,90251.0,90250.0,0.0004]
[1765557069529,1.37581102,90251.0,90250.0,0.0004]
[1765557069733,1.66651102,90251.0,90250.0,0.0004]
[1765557070482,1.44490683,90251.0,90250.0,0.0004]
[1765557070908,1.40177,90251.0,90250.0,0.0004]
[1765557071118,1.44490683,90251.0,90250.0,0.0004]
[1765557071543,0.04513683,90251.0,90250.0,0.0004]
[1765557071747,1.04513683,90251.0,90250.0,0.24642415]
[1765557071981,0.04513683,90251.0,90250.0,0.02481751]
[1765557072193,0.04513683,90251.0,90250.0,0.22361951]
[1765557072413,0.002,90251.0,90250.0,0.22361951]
[1765557073753,0.04313683,90255.0,90254.0,0.22159682]
[1765557074402,0.05421654,90255.0,90252.0,0.01108008]
[1765557074614,0.04313683,90253.0,90252.0,0.01108008]
[1765557075026,0.15220683,90253.0,90250.0,0.0014]
[1765557075234,0.08784683,90251.0,90250.0,0.0014]
[1765557075644,0.04313683,90251.0,90250.0,0.0004]
[1765557075863,0.15220683,90251.0,90250.0,0.0004]
[1765557076073,0.08784683,90251.0,90250.0,0.0004]
[1765557076286,0.2907,90259.0,90258.0,0.221587]
[1765557076510,0.2631,90259.0,90258.0,0.26973357]
[1765557076728,0.04313683,90260.0,90258.0,0.00161287]
[1765557076946,0.01107935,90258.0,90251.0,0.0110802]
[1765557077156,0.2907,90263.0,90257.0,0.22158729]
[1765557077371,0.30177873,90263.0,90259.0,0.22158348]
[1765557077579,0.30177873,90263.0,90258.0,0.01107935]
[1765557077826,0.04313683,90260.0,90259.0,0.22158455]
[1765557078037,0.33383683,90268.0,90259.0,0.29360144]
[1765557078302,0.04313683,90260.0,90259.0,0.22158455]
[1765557079137,0.00138643,90261.0,90259.0,0.22319742]
[1765557079755,0.00038643,90261.0,90259.0,0.22319742]
[1765557080181,0.001,90260.0,90259.0,0.2953756]
[1765557081034,0.01107947,90257.0,90253.0,0.01107996]
[1765557081240,0.00038643,90261.0,90253.0,0.01107996]
[1765557081241,0.04313683,90255.0,90254.0,0.23267666]
[1765557081445,0.00038643,90261.0,90260.0,0.22158209]
[1765557082144,0.04313683,90260.0,90259.0,0.001]
[1765557082371,0.54606034,90260.0,90259.0,0.001]
[1765557082580,1.55544102,90251.0,90250.0,0.0004]
[1765557082801,1.61850821,90251.0,90250.0,0.0004]
[1765557083020,1.61850821,90251.0,90230.0,0.00139999]
[1765557083021,0.22162874,90241.0,90230.0,0.00139999]
[1765557083246,0.07124,90231.0,90230.0,0.04930716]
[1765557083496,0.07124,90231.0,90230.0,0.0004]
[1765557083697,0.0318,90231.0,90230.0,0.0004]
[1765557084358,0.04313683,90232.0,90230.0,0.0004]
[1765557084582,0.00038619,90231.0,90230.0,0.0004]
[1765557085015,0.04352302,90231.0,90230.0,0.0004]
[1765557085432,0.04352302,90231.0,90230.0,0.04809779]
[1765557086322,0.04352302,90231.0,90230.0,0.0004]
[1765557086520,0.00038619,90231.0,90230.0,0.0004]
[1765557086757,0.00038619,90231.0,90230.0,0.02417844]
[1765557086959,0.00038619,90231.0,90230.0,0.00201287]
[1765557087355,0.00038619,90231.0,90230.0,0.02417844]
[1765557087612,0.00038619,90231.0,90230.0,0.10073852]
[1765557088456,0.00038619,90231.0,90230.0,0.10173852]
[1765557088878,0.00038619,90231.0,90230.0,0.10073852]
[1765557089079,0.00038619,90231.0,90230.0,0.10273852]
[1765557090420,0.00038619,90231.0,90230.0,0.10073852]
[1765557090830,0.00038619,90231.0,90230.0,0.10373852]
[1765557091090,0.00038619,90231.0,90230.0,0.08157295]
[1765557091272,0.00038619,90231.0,90230.0,0.00501287]
[1765557092345,0.00038619,90231.0,90230.0,0.0034]
[1765557092555,0.12933458,90231.0,90230.0,0.0004]
[1765557092771,0.18279261,90231.0,90230.0,0.0004]
[1765557093692,0.12046261,90231.0,90230.0,0.02371534]
[1765557093872,0.07762261,90231.0,90230.0,0.02471534]
[1765557094099,0.12046261,90231.0,90230.0,0.0014]
[1765557094303,0.18279261,90231.0,90230.0,0.0014]
[1765557094510,0.18279261,90231.0,90230.0,0.0004]
[1765557094747,0.18379261,90231.0,90230.0,0.0004]
[1765557096506,0.47449261,90231.0,90230.0,0.0004]
[1765557096731,1.504086,90231.0,90230.0,0.0004]
[1765557096969,1.47449261,90231.0,90230.0,0.0004]
[1765557097386,1.43135578,90231.0,90230.0,0.0004]
[1765557097632,1.47449261,90231.0,90230.0,0.0004]
[1765557099132,1.50422981,90231.0,90230.0,0.0004]
[1765557099337,1.47449261,90231.0,90230.0,0.0004]
[1765557099544,1.50422559,90231.0,90230.0,0.0004]
[1765557099955,1.47449261,90231.0,90230.0,0.0004]
[1765557101221,0.22167787,90221.0,90220.0,0.0004]
[1765557101452,1.04313683,90201.0,90200.0,0.0004]
[1765557101664,0.04313683,90206.0,90201.0,0.01108635]
[1765557101871,0.01772,90211.0,90208.0,0.01108549]
[1765557102091,0.04313683,90215.0,90212.0,0.01108499]
[1765557102301,0.04313683,90215.0,90213.0,0.22169609]
[1765557102506,0.04313683,90215.0,90214.0,0.07009795]
[1765557102717,0.04352302,90215.0,90214.0,0.07009795]
[1765557103359,0.09744765,90215.0,90210.0,0.22270489]
[1765557103565,0.08636302,90215.0,90212.0,0.01108499]
[1765557103771,0.05392512,90211.0,90208.0,0.00161287]
[1765557103989,0.0110861,90203.0,90200.0,0.02361438]
[1765557104195,0.11595683,90201.0,90200.0,0.02261439]
[1765557104631,0.17828683,90201.0,90200.0,0.0004]
[1765557105271,1.17828683,90201.0,90200.0,0.0004]
[1765557105480,1.21232395,90201.0,90200.0,0.0004]
[1765557105703,1.50302395,90201.0,90200.0,0.0004]
[1765557106368,1.50301528,90201.0,90200.0,0.0004]
[1765557106789,1.6135229,90201.0,90200.0,0.0004]
[1765557107002,1.54363417,90201.0,90200.0,0.0004]
[1765557107423,1.50401528,90201.0,90200.0,0.0004]
[1765557107778,1.50301528,90201.0,90200.0,0.0004]
[1765557107965,0.95301528,90201.0,90200.0,0.0004]
[1765557108164,0.9925051,90201.0,90200.0,0.0004]
[1765557108389,1.50601528,90201.0,90200.0,0.0004]
[1765557108839,1.53561416,90201.0,90200.0,0.0004]
[1765557109097,1.50601528,90201.0,90200.0,0.0004]
[1765557111328,0.50601528,90201.0,90200.0,0.0004]
[1765557111533,1.50601528,90201.0,90200.0,0.0004]
[1765557115112,1.50601528,90201.0,90190.0,0.0004]
[1765557115113,0.22175161,90191.0,90190.0,0.0004]
[1765557115314,0.04313683,90169.0,90160.0,0.00139999]
[1765557115523,1.62828255,90169.0,90160.0,0.00139999]
[1765557115830,1.55566223,90161.0,90160.0,0.0004]
[1765557116078,1.59741223,90161.0,90160.0,0.0004]
[1765557116279,1.65517223,90161.0,90160.0,0.0004]
[1765557116492,1.65555795,90161.0,90160.0,0.0004]
[1765557116694,1.18219572,90161.0,90160.0,0.0004]
[1765557116894,1.22533255,90161.0,90160.0,0.0004]
[1765557117207,1.22633255,90161.0,90160.0,0.0004]
[1765557117429,1.29370334,90161.0,90160.0,0.0004]
[1765557117637,1.22533255,90161.0,90160.0,0.0004]
[1765557117841,1.43373255,90161.0,90160.0,0.0004]
[1765557118050,1.39059572,90161.0,90160.0,0.0004]
[1765557118534,1.43373255,90161.0,90160.0,0.0004]
[1765557118950,1.54424017,90161.0,90160.0,0.0004]
[1765557119118,1.54524017,90161.0,90160.0,0.0004]
[1765557119506,1.54424017,90161.0,90160.0,0.0004]
[1765557119931,1.54724017,90161.0,90160.0,0.0004]
[1765557120567,1.43673255,90161.0,90160.0,0.0004]
[1765557121322,1.33383683,90151.0,90150.0,0.0004]
[1765557121528,1.39334683,90151.0,90150.0,0.0004]
[1765557121736,1.45110683,90151.0,90150.0,0.0004]
[1765557122401,1.45110683,90151.0,90130.0,0.00139999]
[1765557122617,0.29453923,90131.0,90130.0,0.0004]
[1765557122831,0.33767606,90131.0,90130.0,0.0004]
[1765557123043,1.39543606,90131.0,90130.0,0.0004]
[1765557123491,1.33703606,90131.0,90130.0,0.0004]
[1765557123912,1.33742154,90131.0,90130.0,0.0014]
[1765557124207,1.39582154,90131.0,90130.0,0.0014]
[1765557124405,1.68652154,90131.0,90130.0,0.0014]
[1765557124819,1.68652154,90131.0,90090.0,0.0004]
[1765557124820,0.01109964,90093.0,90090.0,0.00139999]
[1765557125036,0.07264,90091.0,90090.0,0.0004]
[1765557125245,1.11577683,90091.0,90090.0,0.0004]
[1765557125466,1.17353683,90091.0,90090.0,0.0004]
[1765557125886,0.07264,90091.0,90090.0,0.0004]
[1765557126087,0.13078524,90091.0,90090.0,0.0004]
[1765557126300,0.07402524,90091.0,90090.0,0.0004]
[1765557126505,0.17492207,90091.0,90090.0,0.0004]
[1765557126913,1.27796531,90091.0,90090.0,0.0004]
[1765557127123,0.04313683,90072.0,90071.0,0.2331494]
[1765557127335,0.04313683,90071.0,90070.0,0.01210246]
[1765557127757,0.04313683,90070.0,90069.0,0.22205198]
[1765557128206,0.04313683,90075.0,90074.0,0.01110198]
[1765557128412,0.04313683,90075.0,90072.0,0.01110222]
[1765557128822,0.04313683,90071.0,90070.0,0.23415056]
[1765557129024,0.08488683,90071.0,90069.0,0.01110259]
[1765557129225,0.10089683,90070.0,90069.0,0.01110259]
[1765557129491,0.2475,90074.0,90070.0,0.01110247]
[1765557129692,0.01110185,90075.0,90072.0,0.01110222]
[1765557129903,0.01110173,90076.0,90068.0,0.23315608]
[1765557129904,0.04313683,90070.0,90068.0,0.01110272]
[1765557130111,0.32159,90077.0,90074.0,0.01110198]
[1765557130321,0.04313683,90078.0,90074.0,0.01110198]
[1765557130322,0.04313683,90078.0,90076.0,0.22203472]
[1765557130530,0.04313683,90078.0,90075.0,0.01110185]
[1765557130736,0.04175,90077.0,90075.0,0.01110185]
[1765557130944,0.04313683,90078.0,90076.0,0.22203472]
[1765557131147,0.10089683,90093.0,90089.0,0.22200268]
[1765557131550,0.00038524,90091.0,90089.0,0.22361555]
[1765557131756,0.00038524,90091.0,90089.0,0.00161287]
[1765557131982,0.04313683,90086.0,90085.0,0.01110062]
[1765557132597,0.04313683,90089.0,90084.0,0.23311446]